[Event "*** MasterClass Titled Tuesday Blitz"]
[Site "Chess.com"]
[Date "2017.08.01"]
[Round "7"]
[White "Sharafiev_Azat"]
[Black "jeaston1"]
[Result "1-0"]
[WhiteElo "2297"]
[BlackElo "2199"]
[TimeControl "180+2"]
[EndTime "14:34:07 PDT"]
[Termination "Sharafiev_Azat won by resignation"]

1. e4 {[%clk 0:03:01.9]} 1... c6 {[%clk 0:03:00.8]} 2. Nc3 {[%clk 0:03:02]} 2...
d5 {[%clk 0:03:01.9]} 3. Nf3 {[%clk 0:03:03.6]} 3... dxe4 {[%clk 0:03:03]} 4.
Nxe4 {[%clk 0:03:04.8]} 4... Nd7 {[%clk 0:03:01.7]} 5. d4 {[%clk 0:03:02.7]}
5... e6 {[%clk 0:03:01.9]} 6. Bd3 {[%clk 0:03:00.2]} 6... h6 {[%clk 0:03:02.6]}
7. O-O {[%clk 0:02:58]} 7... Ngf6 {[%clk 0:02:52.4]} 8. b3 {[%clk 0:02:55.9]}
8... Qc7 {[%clk 0:02:49.6]} 9. c4 {[%clk 0:02:55.5]} 9... Be7 {[%clk 0:02:46.6]}
10. Bb2 {[%clk 0:02:56.3]} 10... O-O {[%clk 0:02:46]} 11. Re1 {[%clk 0:02:52.7]}
11... b6 {[%clk 0:02:43.6]} 12. Qe2 {[%clk 0:02:41.7]} 12... c5 {[%clk
0:02:44.6]} 13. Nxf6+ {[%clk 0:02:34.7]} 13... Nxf6 {[%clk 0:02:44.9]} 14. dxc5
{[%clk 0:02:33]} 14... bxc5 {[%clk 0:02:45.5]} 15. Be5 {[%clk 0:02:20]} 15...
Qb6 {[%clk 0:02:36.1]} 16. Rad1 {[%clk 0:02:13.8]} 16... Bb7 {[%clk 0:02:33.9]}
17. Bb1 {[%clk 0:02:12.2]} 17... Rad8 {[%clk 0:02:33.1]} 18. Qc2 {[%clk
0:02:11.1]} 18... Rxd1 {[%clk 0:02:31.7]} 19. Rxd1 {[%clk 0:02:12.4]} 19... Be4
{[%clk 0:02:31.2]} 20. Qc3 {[%clk 0:02:12.8]} 20... Bxb1 {[%clk 0:02:30.7]} 21.
Rxb1 {[%clk 0:02:13.9]} 21... Rd8 {[%clk 0:02:32.2]} 22. Qc2 {[%clk 0:02:12.8]}
22... Qc6 {[%clk 0:02:32.8]} 23. Rd1 {[%clk 0:02:11.3]} 23... Rxd1+ {[%clk
0:02:31.2]} 24. Qxd1 {[%clk 0:02:13.2]} 24... Qd7 {[%clk 0:02:31.4]} 25. Qxd7
{[%clk 0:02:13.4]} 25... Nxd7 {[%clk 0:02:31.6]} 26. Bc7 {[%clk 0:02:12.7]}
26... Bf6 {[%clk 0:02:31.8]} 27. Kf1 {[%clk 0:02:10.9]} 27... Kf8 {[%clk
0:02:31.9]} 28. Ke2 {[%clk 0:02:11.8]} 28... Ke7 {[%clk 0:02:32.8]} 29. Kd3
{[%clk 0:02:12.3]} 29... e5 {[%clk 0:02:32.6]} 30. Nd2 {[%clk 0:02:11.8]} 30...
Ke6 {[%clk 0:02:33.3]} 31. Ne4 {[%clk 0:01:56]} 31... Be7 {[%clk 0:02:34.1]} 32.
Nc3 {[%clk 0:01:57.1]} 32... f5 {[%clk 0:02:24]} 33. f3 {[%clk 0:01:55.9]} 33...
Nf6 {[%clk 0:02:21.7]} 34. a3 {[%clk 0:01:52]} 34... a6 {[%clk 0:02:22]} 35. Ba5
{[%clk 0:01:49]} 35... Kd6 {[%clk 0:02:14.8]} 36. b4 {[%clk 0:01:48.9]} 36...
Kc6 {[%clk 0:02:15.1]} 37. b5+ {[%clk 0:01:49.5]} 37... Kb7 {[%clk 0:02:14.6]}
38. a4 {[%clk 0:01:49.6]} 38... Bd6 {[%clk 0:02:05]} 39. h3 {[%clk 0:01:46]}
39... g5 {[%clk 0:01:59.9]} 40. Bd8 {[%clk 0:01:45.4]} 40... Nd7 {[%clk
0:01:52.6]} 41. Nd5 {[%clk 0:01:43.7]} 41... Nf8 {[%clk 0:01:42]} 42. Be7 {[%clk
0:01:25.6]} 42... Bxe7 {[%clk 0:01:39.7]} 43. Nxe7 {[%clk 0:01:27.5]} 43... Ne6
{[%clk 0:01:24.9]} 44. Nxf5 {[%clk 0:01:28.3]} 44... Nf4+ {[%clk 0:01:25.9]} 45.
Ke4 {[%clk 0:01:29.6]} 45... Nxg2 {[%clk 0:01:26.7]} 46. Kxe5 {[%clk 0:01:16.6]}
46... h5 {[%clk 0:01:22.4]} 47. a5 {[%clk 0:00:58.3]} 47... Nf4 {[%clk
0:01:16.6]} 48. h4 {[%clk 0:00:55.6]} 48... Nd3+ {[%clk 0:01:14.7]} 49. Kd5
{[%clk 0:00:54.8]} 49... gxh4 {[%clk 0:01:13]} 50. Nxh4 {[%clk 0:00:55.3]} 50...
Ka7 {[%clk 0:01:02.6]} 51. Ng6 {[%clk 0:00:55.5]} 51... Kb7 {[%clk 0:01:02.9]}
52. f4 {[%clk 0:00:56]} 52... h4 {[%clk 0:01:02.8]} 53. Nxh4 {[%clk 0:00:55.2]}
53... Nxf4+ {[%clk 0:01:03.6]} 54. Kxc5 {[%clk 0:00:56.8]} 54... Ne6+ {[%clk
0:01:04.7]} 55. Kb4 {[%clk 0:00:54.6]} 55... Nd4 {[%clk 0:01:05.7]} 56. Ng6
{[%clk 0:00:54.1]} 56... Nc2+ {[%clk 0:01:05.4]} 57. Kc5 {[%clk 0:00:54.7]}
57... Ne3 {[%clk 0:01:06.5]} 58. Nf4 {[%clk 0:00:54.3]} 58... Nf5 {[%clk
0:01:05.4]} 59. Nd5 {[%clk 0:00:54]} 59... Ng7 {[%clk 0:01:05.4]} 60. Nb4 {[%clk
0:00:48]} 60... Ne6+ {[%clk 0:01:05.7]} 61. Kd6 {[%clk 0:00:28.1]} 61... axb5
{[%clk 0:00:53.9]} 62. Kxe6 {[%clk 0:00:28.9]} 62... bxc4 {[%clk 0:00:55.1]} 63.
Kd5 {[%clk 0:00:30.2]} 63... c3 {[%clk 0:00:56.7]} 64. Kc4 {[%clk 0:00:31.4]}
64... c2 {[%clk 0:00:55.5]} 65. Nxc2 {[%clk 0:00:32.4]} 65... Ka6 {[%clk
0:00:55.8]} 66. Kb4 {[%clk 0:00:34.1]} 1-0

[Event "*** MasterClass Titled Tuesday Blitz"]
[Site "Chess.com"]
[Date "2017.08.01"]
[Round "7"]
[White "pedromartinez91"]
[Black "GrigorGrigorov"]
[Result "0-1"]
[WhiteElo "2347"]
[BlackElo "2618"]
[TimeControl "180+2"]
[EndTime "14:34:08 PDT"]
[Termination "GrigorGrigorov won on time"]

1. e4 {[%clk 0:03:01.9]} 1... c5 {[%clk 0:03:00.5]} 2. Nf3 {[%clk 0:02:59.6]}
2... d6 {[%clk 0:03:01.6]} 3. Bb5+ {[%clk 0:02:56.5]} 3... Bd7 {[%clk
0:03:02.4]} 4. Bxd7+ {[%clk 0:02:56.9]} 4... Nxd7 {[%clk 0:03:04.1]} 5. O-O
{[%clk 0:02:57.7]} 5... Ngf6 {[%clk 0:03:05]} 6. Re1 {[%clk 0:02:58.2]} 6... e6
{[%clk 0:03:06]} 7. c3 {[%clk 0:02:51.8]} 7... Be7 {[%clk 0:03:07.1]} 8. d4
{[%clk 0:02:52.6]} 8... O-O {[%clk 0:03:07.1]} 9. e5 {[%clk 0:02:48.9]} 9... Nd5
{[%clk 0:03:06]} 10. exd6 {[%clk 0:02:47.5]} 10... Bxd6 {[%clk 0:03:06.5]} 11.
c4 {[%clk 0:02:30.7]} 11... N5b6 {[%clk 0:03:07.2]} 12. b3 {[%clk 0:02:28.9]}
12... cxd4 {[%clk 0:03:06.6]} 13. Qxd4 {[%clk 0:02:23.1]} 13... Be7 {[%clk
0:03:07.1]} 14. Bb2 {[%clk 0:02:21.2]} 14... Bf6 {[%clk 0:03:07.6]} 15. Qd2
{[%clk 0:02:21.5]} 15... Nc5 {[%clk 0:03:02.3]} 16. Qxd8 {[%clk 0:02:18.3]}
16... Raxd8 {[%clk 0:03:02.1]} 17. Bxf6 {[%clk 0:02:18.4]} 17... gxf6 {[%clk
0:03:03.7]} 18. Nc3 {[%clk 0:02:18.9]} 18... Rd3 {[%clk 0:03:02.1]} 19. Ne4
{[%clk 0:02:08.2]} 19... Nxe4 {[%clk 0:03:02.8]} 20. Rxe4 {[%clk 0:02:09]} 20...
Rfd8 {[%clk 0:03:04.4]} 21. Rae1 {[%clk 0:01:59]} 21... f5 {[%clk 0:02:58.9]}
22. R4e3 {[%clk 0:01:56.4]} 22... a5 {[%clk 0:02:43.5]} 23. Kf1 {[%clk
0:01:53.5]} 23... a4 {[%clk 0:02:31.5]} 24. Ke2 {[%clk 0:01:34.9]} 24... R3d7
{[%clk 0:02:30.2]} 25. g3 {[%clk 0:01:32]} 25... axb3 {[%clk 0:02:25.1]} 26.
axb3 {[%clk 0:01:31]} 26... Ra8 {[%clk 0:02:26]} 27. Rd3 {[%clk 0:01:23.6]}
27... Ra2+ {[%clk 0:02:26.3]} 28. Nd2 {[%clk 0:01:24.4]} 28... Rc7 {[%clk
0:02:11.3]} 29. Rc3 {[%clk 0:01:15.6]} 29... Nd5 {[%clk 0:02:07]} 30. Rd3 {[%clk
0:01:06.9]} 30... Nb4 {[%clk 0:02:07.1]} 31. Rd8+ {[%clk 0:01:06.7]} 31... Kg7
{[%clk 0:02:07.9]} 32. Rc1 {[%clk 0:01:00.8]} 32... Rc5 {[%clk 0:01:57.7]} 33.
Rc3 {[%clk 0:00:53]} 33... Rca5 {[%clk 0:01:34.6]} 34. Ke3 {[%clk 0:00:47.3]}
34... Rb2 {[%clk 0:01:30.3]} 35. Rd7 {[%clk 0:00:30.7]} 35... b6 {[%clk
0:01:29.7]} 36. Nf3 {[%clk 0:00:30.3]} 36... Kf6 {[%clk 0:01:26.6]} 37. h4
{[%clk 0:00:28]} 37... Raa2 {[%clk 0:01:17.4]} 38. Rd2 {[%clk 0:00:28.2]} 38...
Nc2+ {[%clk 0:00:55.3]} 39. Kf4 {[%clk 0:00:18.3]} 39... h6 {[%clk 0:00:51.6]}
40. g4 {[%clk 0:00:18.8]} 40... fxg4 {[%clk 0:00:50.8]} 41. Kxg4 {[%clk
0:00:20.2]} 41... Nb4 {[%clk 0:00:47]} 42. Rxb2 {[%clk 0:00:20.2]} 42... Rxb2
{[%clk 0:00:48.9]} 43. Nd4 {[%clk 0:00:21.1]} 43... Rxf2 {[%clk 0:00:47.8]} 44.
Kg3 {[%clk 0:00:21.6]} 44... Rd2 {[%clk 0:00:45.7]} 45. Nb5 {[%clk 0:00:22.2]}
45... e5 {[%clk 0:00:39.1]} 46. Nc7 {[%clk 0:00:22]} 46... Nd3 {[%clk
0:00:34.8]} 47. Nd5+ {[%clk 0:00:21.6]} 47... Kf5 {[%clk 0:00:32.2]} 48. Kf3
{[%clk 0:00:22.6]} 48... e4+ {[%clk 0:00:29.9]} 49. Ke3 {[%clk 0:00:23.7]} 49...
Rh2 {[%clk 0:00:31.5]} 50. b4 {[%clk 0:00:24.4]} 50... Ke5 {[%clk 0:00:31.6]}
51. Nxb6 {[%clk 0:00:19.8]} 51... Rh3+ {[%clk 0:00:31.1]} 52. Kd2 {[%clk
0:00:18.8]} 52... Kd4 {[%clk 0:00:32.5]} 53. Ra3 {[%clk 0:00:17.5]} 53... Rh2+
{[%clk 0:00:32.6]} 54. Kd1 {[%clk 0:00:18.3]} 54... e3 {[%clk 0:00:33.9]} 55.
Ra2 {[%clk 0:00:09.4]} 55... Rxa2 {[%clk 0:00:34.2]} 0-1

[Event "*** MasterClass Titled Tuesday Blitz"]
[Site "Chess.com"]
[Date "2017.08.01"]
[Round "7"]
[White "Grootneus"]
[Black "nihalsarin"]
[Result "1/2-1/2"]
[WhiteElo "2061"]
[BlackElo "2595"]
[TimeControl "180+2"]
[EndTime "14:34:11 PDT"]
[Termination "Game drawn - insufficient material"]

1. e4 {[%clk 0:03:01.9]} 1... e6 {[%clk 0:02:59.8]} 2. d4 {[%clk 0:03:02.4]}
2... d5 {[%clk 0:03:01.3]} 3. Nc3 {[%clk 0:03:04]} 3... Bb4 {[%clk 0:03:01.1]}
4. Bd3 {[%clk 0:03:05.6]} 4... dxe4 {[%clk 0:03:01.1]} 5. Bxe4 {[%clk
0:03:07.5]} 5... Nf6 {[%clk 0:03:02.4]} 6. Bf3 {[%clk 0:03:09.1]} 6... O-O
{[%clk 0:03:01.4]} 7. Ne2 {[%clk 0:03:08.7]} 7... c5 {[%clk 0:03:03.1]} 8. O-O
{[%clk 0:02:49.1]} 8... cxd4 {[%clk 0:03:03.5]} 9. Qxd4 {[%clk 0:02:44.7]} 9...
Qxd4 {[%clk 0:03:02]} 10. Nxd4 {[%clk 0:02:46]} 10... a6 {[%clk 0:03:02]} 11.
Bd2 {[%clk 0:02:08.6]} 11... e5 {[%clk 0:02:59.3]} 12. Nb3 {[%clk 0:02:06]}
12... h6 {[%clk 0:02:58.1]} 13. a3 {[%clk 0:02:06.9]} 13... Bd6 {[%clk
0:02:55.7]} 14. Rad1 {[%clk 0:02:03.7]} 14... Bc7 {[%clk 0:02:56.6]} 15. Be3
{[%clk 0:01:55.1]} 15... Nc6 {[%clk 0:02:55.6]} 16. Nc5 {[%clk 0:01:38.1]} 16...
Re8 {[%clk 0:02:38.8]} 17. Rfe1 {[%clk 0:01:32.5]} 17... Ng4 {[%clk 0:02:00.2]}
18. Bc1 {[%clk 0:01:03.2]} 18... Bb6 {[%clk 0:01:52.8]} 19. N3a4 {[%clk
0:00:57.9]} 19... Ba7 {[%clk 0:01:52.7]} 20. h3 {[%clk 0:00:52.5]} 20... Nf6
{[%clk 0:01:53.2]} 21. Nb3 {[%clk 0:00:45.2]} 21... e4 {[%clk 0:01:50.3]} 22.
Be2 {[%clk 0:00:43.6]} 22... Bf5 {[%clk 0:01:46.9]} 23. Nac5 {[%clk 0:00:44]}
23... Rab8 {[%clk 0:01:46.5]} 24. Bf4 {[%clk 0:00:39]} 24... Rbd8 {[%clk
0:01:42.1]} 25. Nxb7 {[%clk 0:00:39.1]} 25... Rxd1 {[%clk 0:01:42.8]} 26. Rxd1
{[%clk 0:00:41]} 26... Bg6 {[%clk 0:01:44]} 27. Nd6 {[%clk 0:00:39]} 27... Rd8
{[%clk 0:01:42]} 28. Nc4 {[%clk 0:00:27.6]} 28... Re8 {[%clk 0:01:40.3]} 29. Nd6
{[%clk 0:00:26.4]} 29... Rd8 {[%clk 0:01:40.7]} 30. Nc4 {[%clk 0:00:27.6]} 30...
Rxd1+ {[%clk 0:01:35.9]} 31. Bxd1 {[%clk 0:00:29.5]} 31... Nd5 {[%clk
0:01:37.5]} 32. Bd2 {[%clk 0:00:28.6]} 32... f5 {[%clk 0:01:37.9]} 33. Ne3
{[%clk 0:00:28.2]} 33... Nb6 {[%clk 0:01:28.3]} 34. Be2 {[%clk 0:00:27.7]} 34...
Na4 {[%clk 0:01:23]} 35. Bxa6 {[%clk 0:00:21.4]} 35... Nxb2 {[%clk 0:01:23.8]}
36. Nc4 {[%clk 0:00:22.7]} 36... Nd1 {[%clk 0:01:17.6]} 37. Bb5 {[%clk 0:00:19]}
37... Ne7 {[%clk 0:01:04.6]} 38. Ne3 {[%clk 0:00:18.4]} 38... Nxf2 {[%clk
0:00:53.1]} 39. Kxf2 {[%clk 0:00:17.3]} 39... f4 {[%clk 0:00:54.3]} 40. Ke2
{[%clk 0:00:17.2]} 40... fxe3 {[%clk 0:00:55.2]} 41. Bxe3 {[%clk 0:00:19.1]}
41... Bxe3 {[%clk 0:00:56.7]} 42. Kxe3 {[%clk 0:00:21]} 42... Nd5+ {[%clk
0:00:57.7]} 43. Kd2 {[%clk 0:00:19.8]} 43... e3+ {[%clk 0:00:58.6]} 44. Ke1
{[%clk 0:00:21.2]} 44... Nc3 {[%clk 0:00:56]} 45. Bc4+ {[%clk 0:00:19.4]} 45...
Kf8 {[%clk 0:00:57.2]} 46. Nd4 {[%clk 0:00:16.4]} 46... Ke7 {[%clk 0:00:58.1]}
47. Ne2 {[%clk 0:00:14.6]} 47... Nb1 {[%clk 0:00:57.7]} 48. Bb3 {[%clk
0:00:11.8]} 48... Nxa3 {[%clk 0:00:56.7]} 49. Nf4 {[%clk 0:00:12.9]} 49... Bxc2
{[%clk 0:00:55.9]} 50. Bxc2 {[%clk 0:00:12.3]} 50... Nxc2+ {[%clk 0:00:56.8]}
51. Ke2 {[%clk 0:00:13.1]} 51... Kf6 {[%clk 0:00:57.2]} 52. Nd5+ {[%clk
0:00:13.9]} 52... Ke5 {[%clk 0:00:56.1]} 53. Nxe3 {[%clk 0:00:15.3]} 53... Nd4+
{[%clk 0:00:56.3]} 54. Kf2 {[%clk 0:00:16]} 54... Kf4 {[%clk 0:00:56.2]} 55. g3+
{[%clk 0:00:16.5]} 55... Ke4 {[%clk 0:00:57.5]} 56. Ng4 {[%clk 0:00:17.4]} 56...
h5 {[%clk 0:00:57.9]} 57. Ne3 {[%clk 0:00:18.6]} 57... g5 {[%clk 0:00:59]} 58.
Ng2 {[%clk 0:00:19.6]} 58... Nc2 {[%clk 0:00:58.8]} 59. h4 {[%clk 0:00:18]}
59... Kf5 {[%clk 0:00:55]} 60. hxg5 {[%clk 0:00:18]} 60... Kxg5 {[%clk
0:00:56.4]} 61. Nf4 {[%clk 0:00:19.4]} 61... h4 {[%clk 0:00:57.6]} 62. gxh4+
{[%clk 0:00:18.8]} 62... Kxf4 {[%clk 0:00:59.5]} 63. h5 {[%clk 0:00:19.7]} 63...
Kg5 {[%clk 0:01:00.4]} 64. h6 {[%clk 0:00:21.6]} 64... Kxh6 {[%clk 0:01:02.3]}
1/2-1/2

[Event "*** MasterClass Titled Tuesday Blitz"]
[Site "Chess.com"]
[Date "2017.08.01"]
[Round "7"]
[White "GMKrikor"]
[Black "DiamondCrusher22"]
[Result "0-1"]
[WhiteElo "2486"]
[BlackElo "2058"]
[TimeControl "180+2"]
[EndTime "14:34:36 PDT"]
[Termination "DiamondCrusher22 won on time"]

1. e4 {[%clk 0:03:01.9]} 1... e5 {[%clk 0:02:59.2]} 2. Nf3 {[%clk 0:03:03.1]}
2... Nc6 {[%clk 0:03:00.1]} 3. Bb5 {[%clk 0:03:04.1]} 3... Nf6 {[%clk
0:02:59.1]} 4. Qe2 {[%clk 0:02:58.4]} 4... d6 {[%clk 0:02:55.5]} 5. d4 {[%clk
0:02:59.5]} 5... exd4 {[%clk 0:02:54.4]} 6. e5 {[%clk 0:03:01.1]} 6... dxe5
{[%clk 0:02:24.8]} 7. Nxe5 {[%clk 0:03:02]} 7... Be7 {[%clk 0:01:37.6]} 8. Nxc6
{[%clk 0:02:57.7]} 8... bxc6 {[%clk 0:01:36.9]} 9. Bxc6+ {[%clk 0:02:59.2]} 9...
Bd7 {[%clk 0:01:38.2]} 10. Bxa8 {[%clk 0:03:00.6]} 10... Qxa8 {[%clk 0:01:39.8]}
11. O-O {[%clk 0:03:01.3]} 11... Be6 {[%clk 0:01:39.1]} 12. c3 {[%clk
0:02:57.6]} 12... c5 {[%clk 0:01:31.9]} 13. cxd4 {[%clk 0:02:50.1]} 13... cxd4
{[%clk 0:01:32.9]} 14. Rd1 {[%clk 0:02:51.6]} 14... Bg4 {[%clk 0:01:23.1]} 15.
f3 {[%clk 0:02:41.2]} 15... Be6 {[%clk 0:01:23.5]} 16. Kh1 {[%clk 0:02:38.1]}
16... Qc6 {[%clk 0:01:00.9]} 17. Bf4 {[%clk 0:02:25.8]} 17... Nd5 {[%clk
0:00:53.6]} 18. Be5 {[%clk 0:02:19.8]} 18... Ne3 {[%clk 0:00:47.5]} 19. Rg1
{[%clk 0:02:11.8]} 19... Nc2 {[%clk 0:00:25.8]} 20. Rc1 {[%clk 0:02:09.3]} 20...
Bf5 {[%clk 0:00:25.1]} 21. Nd2 {[%clk 0:01:27.4]} 21... d3 {[%clk 0:00:19.7]}
22. Qf2 {[%clk 0:01:26.9]} 22... Qe6 {[%clk 0:00:18.4]} 23. Bc3 {[%clk
0:01:00.4]} 23... Nxa1 {[%clk 0:00:15.2]} 24. Rxa1 {[%clk 0:01:02.3]} 24... O-O
{[%clk 0:00:16.1]} 25. Qxa7 {[%clk 0:01:02.8]} 25... Bg5 {[%clk 0:00:15.6]} 26.
Qf2 {[%clk 0:00:57.2]} 26... Re8 {[%clk 0:00:13.5]} 27. f4 {[%clk 0:00:44.8]}
27... Bd8 {[%clk 0:00:08.8]} 28. Nf3 {[%clk 0:00:45.7]} 28... Bb6 {[%clk
0:00:09.6]} 29. Bd4 {[%clk 0:00:37.1]} 29... Bc7 {[%clk 0:00:09.5]} 30. Re1
{[%clk 0:00:35.7]} 30... Qd7 {[%clk 0:00:10]} 31. Be5 {[%clk 0:00:28]} 31... Bd8
{[%clk 0:00:08.6]} 32. Bc3 {[%clk 0:00:28.5]} 32... Bc7 {[%clk 0:00:08.7]} 33.
Ne5 {[%clk 0:00:18.8]} 33... Bxe5 {[%clk 0:00:05.9]} 34. fxe5 {[%clk 0:00:19.8]}
34... Be6 {[%clk 0:00:05.7]} 35. a3 {[%clk 0:00:20.2]} 35... h6 {[%clk
0:00:06.6]} 36. h3 {[%clk 0:00:20.8]} 36... Bd5 {[%clk 0:00:07.4]} 37. Kh2
{[%clk 0:00:21.5]} 37... Qe6 {[%clk 0:00:07.9]} 38. Qg3 {[%clk 0:00:22.2]} 38...
Bc4 {[%clk 0:00:08.2]} 39. Re4 {[%clk 0:00:19.3]} 39... Rd8 {[%clk 0:00:07.9]}
40. Qf2 {[%clk 0:00:11.3]} 40... Bd5 {[%clk 0:00:07.8]} 41. Re1 {[%clk
0:00:08.8]} 41... Bc4 {[%clk 0:00:08.2]} 42. Re3 {[%clk 0:00:07.6]} 42... g6
{[%clk 0:00:08.2]} 43. Re1 {[%clk 0:00:07.5]} 43... Bb3 {[%clk 0:00:07.4]} 44.
Qf4 {[%clk 0:00:07.9]} 44... Kh7 {[%clk 0:00:07.2]} 45. Bd2 {[%clk 0:00:09.5]}
45... g5 {[%clk 0:00:06.8]} 46. Qe4+ {[%clk 0:00:10.6]} 46... Qg6 {[%clk
0:00:07.8]} 47. Qe3 {[%clk 0:00:08.9]} 47... Rc8 {[%clk 0:00:07.6]} 48. Bc3
{[%clk 0:00:05.9]} 48... Re8 {[%clk 0:00:06.8]} 49. Rf1 {[%clk 0:00:06.9]} 49...
f6 {[%clk 0:00:05.4]} 50. Qa7+ {[%clk 0:00:04.8]} 50... Kg8 {[%clk 0:00:02.5]}
51. Rxf6 {[%clk 0:00:05.2]} 51... Qg7 {[%clk 0:00:03.9]} 52. e6 {[%clk
0:00:06.3]} 52... Qxa7 {[%clk 0:00:04.6]} 53. Rg6+ {[%clk 0:00:08]} 53... Kf8
{[%clk 0:00:05.5]} 54. Bb4+ {[%clk 0:00:08.6]} 54... Re7 {[%clk 0:00:05.6]} 55.
Rf6+ {[%clk 0:00:03.6]} 55... Ke8 {[%clk 0:00:06.9]} 56. Rg6 {[%clk 0:00:04.1]}
56... Qc7+ {[%clk 0:00:08]} 57. g3 {[%clk 0:00:04.5]} 57... Rg7 {[%clk
0:00:09.2]} 58. Rf6 {[%clk 0:00:05.5]} 58... Qc2+ {[%clk 0:00:08.9]} 59. Kg1
{[%clk 0:00:06.9]} 59... Re7 {[%clk 0:00:10.1]} 60. Rg6 {[%clk 0:00:06.9]} 60...
Qd1+ {[%clk 0:00:11]} 61. Kf2 {[%clk 0:00:06.5]} 61... Rxe6 {[%clk 0:00:12.3]}
0-1

[Event "*** MasterClass Titled Tuesday Blitz"]
[Site "Chess.com"]
[Date "2017.08.01"]
[Round "7"]
[White "nutibara"]
[Black "Me_ch_an"]
[Result "1/2-1/2"]
[WhiteElo "2251"]
[BlackElo "2386"]
[TimeControl "180+2"]
[EndTime "14:34:40 PDT"]
[Termination "Game drawn by repetition"]

1. e4 {[%clk 0:02:59.7]} 1... c5 {[%clk 0:03:00.3]} 2. Nf3 {[%clk 0:03:00.3]}
2... Nc6 {[%clk 0:02:58.4]} 3. d4 {[%clk 0:03:01.7]} 3... cxd4 {[%clk
0:03:00.3]} 4. Nxd4 {[%clk 0:03:03.4]} 4... Qb6 {[%clk 0:03:00.4]} 5. Nb3 {[%clk
0:03:02.7]} 5... Nf6 {[%clk 0:03:00.7]} 6. Nc3 {[%clk 0:03:02.5]} 6... e6 {[%clk
0:03:01.9]} 7. Bd3 {[%clk 0:03:02.4]} 7... a6 {[%clk 0:03:01.3]} 8. f4 {[%clk
0:03:03.1]} 8... h5 {[%clk 0:03:01.1]} 9. e5 {[%clk 0:02:42.5]} 9... Ng4 {[%clk
0:03:01.1]} 10. Ne4 {[%clk 0:02:41.6]} 10... Ne3 {[%clk 0:02:42.2]} 11. Qf3
{[%clk 0:02:18.9]} 11... Nf5 {[%clk 0:02:40.8]} 12. c3 {[%clk 0:02:18.1]} 12...
a5 {[%clk 0:02:40.2]} 13. Ng5 {[%clk 0:02:02.6]} 13... a4 {[%clk 0:02:36.6]} 14.
Nd2 {[%clk 0:02:00.2]} 14... Qe3+ {[%clk 0:02:30.2]} 15. Qxe3 {[%clk 0:01:59.1]}
15... Nxe3 {[%clk 0:02:32.1]} 16. Ndf3 {[%clk 0:01:17.3]} 16... Bc5 {[%clk
0:02:04.4]} 17. Ne4 {[%clk 0:00:53.7]} 17... Ba7 {[%clk 0:00:31.3]} 18. Nd6+
{[%clk 0:00:52.9]} 18... Ke7 {[%clk 0:00:32.8]} 19. g3 {[%clk 0:00:53.2]} 19...
f6 {[%clk 0:00:28.5]} 20. Ke2 {[%clk 0:00:47.1]} 20... Ng4 {[%clk 0:00:29.3]}
21. Nxc8+ {[%clk 0:00:38]} 21... Raxc8 {[%clk 0:00:29.4]} 22. h3 {[%clk
0:00:38.7]} 22... Nf2 {[%clk 0:00:30.3]} 23. exf6+ {[%clk 0:00:34.5]} 23... gxf6
{[%clk 0:00:36.2]} 24. Rh2 {[%clk 0:00:34.2]} 24... Nxd3 {[%clk 0:00:37.4]} 25.
Kxd3 {[%clk 0:00:34.9]} 25... Rhg8 {[%clk 0:00:39.5]} 26. Rg2 {[%clk 0:00:34.6]}
26... e5 {[%clk 0:00:39.1]} 27. fxe5 {[%clk 0:00:31.7]} 27... Nxe5+ {[%clk
0:00:40.9]} 28. Nxe5 {[%clk 0:00:30.9]} 28... fxe5 {[%clk 0:00:43.1]} 29. Be3
{[%clk 0:00:29.7]} 29... Bxe3 {[%clk 0:00:42.5]} 30. Kxe3 {[%clk 0:00:30.5]}
30... d5 {[%clk 0:00:43.8]} 31. Rf1 {[%clk 0:00:23.5]} 31... Ke6 {[%clk
0:00:42.1]} 32. g4 {[%clk 0:00:23.6]} 32... hxg4 {[%clk 0:00:42.7]} 33. hxg4
{[%clk 0:00:25.4]} 33... Rg5 {[%clk 0:00:43.5]} 34. Rh1 {[%clk 0:00:21.6]} 34...
Rcg8 {[%clk 0:00:43.9]} 35. Rh6+ {[%clk 0:00:21.5]} 35... Kd7 {[%clk 0:00:43.8]}
36. Rf2 {[%clk 0:00:15.1]} 36... R8g7 {[%clk 0:00:42.9]} 37. Rf5 {[%clk
0:00:11.4]} 37... Rxg4 {[%clk 0:00:41.7]} 38. Rxe5 {[%clk 0:00:12.1]} 38... R4g5
{[%clk 0:00:35.5]} 39. Kd4 {[%clk 0:00:11.5]} 39... Rxe5 {[%clk 0:00:34.8]} 40.
Kxe5 {[%clk 0:00:11.5]} 40... Rg2 {[%clk 0:00:34.5]} 41. Kxd5 {[%clk 0:00:07.1]}
41... Rxb2 {[%clk 0:00:35.1]} 42. Rh7+ {[%clk 0:00:07.1]} 42... Kc8 {[%clk
0:00:34.8]} 43. Kd6 {[%clk 0:00:07.5]} 43... Kb8 {[%clk 0:00:36.1]} 44. a3
{[%clk 0:00:05.1]} 44... Rb3 {[%clk 0:00:36.8]} 45. c4 {[%clk 0:00:06]} 45...
Rxa3 {[%clk 0:00:38]} 46. Kc5 {[%clk 0:00:07.1]} 46... Rb3 {[%clk 0:00:38.9]}
47. Rh1 {[%clk 0:00:04.7]} 47... a3 {[%clk 0:00:37.3]} 48. Ra1 {[%clk
0:00:04.6]} 48... Kc7 {[%clk 0:00:38.5]} 49. Kd5 {[%clk 0:00:04.7]} 49... b6
{[%clk 0:00:39.3]} 50. Kd4 {[%clk 0:00:03.7]} 50... Kb7 {[%clk 0:00:40.3]} 51.
c5 {[%clk 0:00:02.5]} 51... bxc5+ {[%clk 0:00:40.2]} 52. Kxc5 {[%clk 0:00:03.5]}
52... Ka6 {[%clk 0:00:40.9]} 53. Kc4 {[%clk 0:00:04.9]} 53... Rh3 {[%clk
0:00:41.7]} 54. Kb4 {[%clk 0:00:06.2]} 54... Kb6 {[%clk 0:00:42]} 55. Rxa3
{[%clk 0:00:06.9]} 55... Rh4+ {[%clk 0:00:43.3]} 56. Kb3 {[%clk 0:00:08]} 56...
Kb5 {[%clk 0:00:43.9]} 57. Kb2 {[%clk 0:00:08.4]} 57... Rh2+ {[%clk 0:00:44.7]}
58. Kb1 {[%clk 0:00:09.3]} 58... Kb4 {[%clk 0:00:45.8]} 59. Rg3 {[%clk
0:00:10.4]} 59... Rh1+ {[%clk 0:00:45.9]} 60. Kb2 {[%clk 0:00:10.9]} 60... Rh2+
{[%clk 0:00:47.2]} 61. Kb1 {[%clk 0:00:11.8]} 61... Rh1+ {[%clk 0:00:48.7]} 62.
Kb2 {[%clk 0:00:12.8]} 62... Rh2+ {[%clk 0:00:50.1]} 63. Kb1 {[%clk 0:00:13.7]}
63... Rh1+ {[%clk 0:00:51.5]} 64. Kb2 {[%clk 0:00:14.7]} 64... Rh2+ {[%clk
0:00:52.6]} 65. Kb1 {[%clk 0:00:15.6]} 65... Rh1+ {[%clk 0:00:53.3]} 66. Kb2
{[%clk 0:00:16.6]} 66... Rh2+ {[%clk 0:00:52.6]} 67. Kb1 {[%clk 0:00:17]}
1/2-1/2